[Event "Early-Titled-Tuesday-Blitz-October-17-2023"]
[Site "Chess.com"]
[Date "2023.10.17"]
[Round "5"]
[White "jk13"]
[Black "giomar27"]
[Result "0-1"]
[WhiteElo "2672"]
[BlackElo "2355"]
[TimeControl "180+1"]
[EndTime "8:57:45 PDT"]
[Termination "giomar27 won on time"]

1. e4 {[%clk 0:03:00.9]} 1... e5 {[%clk 0:02:59.7]} 2. Nf3 {[%clk 0:03:00.5]}
2... Nc6 {[%clk 0:02:59.8]} 3. Bc4 {[%clk 0:03:00.4]} 3... Nf6 {[%clk
0:02:59.7]} 4. d3 {[%clk 0:03:01]} 4... h6 {[%clk 0:02:59.9]} 5. O-O {[%clk
0:03:01.4]} 5... d6 {[%clk 0:03:00]} 6. a4 {[%clk 0:03:00.9]} 6... g5 {[%clk
0:02:57.6]} 7. c3 {[%clk 0:02:56.3]} 7... Bg7 {[%clk 0:02:56.3]} 8. a5 {[%clk
0:02:56.4]} 8... a6 {[%clk 0:02:55.7]} 9. b4 {[%clk 0:02:50.5]} 9... O-O {[%clk
0:02:54.3]} 10. Re1 {[%clk 0:02:49.8]} 10... Ne7 {[%clk 0:02:52.5]} 11. Nbd2
{[%clk 0:02:41.3]} 11... Ng6 {[%clk 0:02:52.3]} 12. Nf1 {[%clk 0:02:41.4]} 12...
c6 {[%clk 0:02:51.7]} 13. Bb3 {[%clk 0:02:41.4]} 13... d5 {[%clk 0:02:46.8]} 14.
Qc2 {[%clk 0:02:36.3]} 14... Re8 {[%clk 0:02:45.9]} 15. Ng3 {[%clk 0:02:36]}
15... Be6 {[%clk 0:02:44.6]} 16. Bb2 {[%clk 0:02:28.6]} 16... Qd7 {[%clk
0:02:42.6]} 17. Rad1 {[%clk 0:02:27.5]} 17... Rad8 {[%clk 0:02:37.9]} 18. c4
{[%clk 0:02:21.3]} 18... d4 {[%clk 0:02:30.8]} 19. c5 {[%clk 0:02:20.9]} 19...
g4 {[%clk 0:02:23.3]} 20. Nd2 {[%clk 0:02:17.7]} 20... h5 {[%clk 0:02:17.9]} 21.
Nc4 {[%clk 0:02:09.5]} 21... h4 {[%clk 0:02:16.6]} 22. Ne2 {[%clk 0:02:02.6]}
22... Nh5 {[%clk 0:02:15.9]} 23. g3 {[%clk 0:02:00]} 23... Qe7 {[%clk
0:02:13.5]} 24. Nd6 {[%clk 0:01:54.2]} 24... Rf8 {[%clk 0:02:11.7]} 25. Bc1
{[%clk 0:01:54.7]} 25... Kh7 {[%clk 0:01:58.7]} 26. Bd2 {[%clk 0:01:38.6]} 26...
Bf6 {[%clk 0:01:48.7]} 27. Bc4 {[%clk 0:01:31]} 27... Qd7 {[%clk 0:01:24]} 28.
Qc1 {[%clk 0:01:27.5]} 28... Be7 {[%clk 0:01:24.2]} 29. Bg5 {[%clk 0:01:12]}
29... f6 {[%clk 0:01:18.5]} 30. Bd2 {[%clk 0:00:59.7]} 30... Bxd6 {[%clk
0:01:17.7]} 31. cxd6 {[%clk 0:00:59.6]} 31... Qxd6 {[%clk 0:01:17]} 32. Kg2
{[%clk 0:00:54.9]} 32... f5 {[%clk 0:01:13.5]} 33. Bg5 {[%clk 0:00:51.8]} 33...
Rd7 {[%clk 0:01:13.3]} 34. Rf1 {[%clk 0:00:42.6]} 34... Rdf7 {[%clk 0:01:12.8]}
35. Kg1 {[%clk 0:00:24.9]} 35... f4 {[%clk 0:01:10]} 36. Qd2 {[%clk 0:00:22.4]}
36... Bxc4 {[%clk 0:01:07.5]} 37. dxc4 {[%clk 0:00:21.7]} 37... Qe6 {[%clk
0:00:58.9]} 38. Qd3 {[%clk 0:00:18.6]} 38... fxg3 {[%clk 0:00:50.4]} 39. fxg3
{[%clk 0:00:18.9]} 39... Rf3 {[%clk 0:00:50.5]} 40. Qc2 {[%clk 0:00:16.9]} 40...
Qf7 {[%clk 0:00:47.4]} 41. Qc1 {[%clk 0:00:13.9]} 41... Rf2 {[%clk 0:00:39.3]}
42. gxh4 {[%clk 0:00:11.4]} 42... Qf3 {[%clk 0:00:37.5]} 43. Nf4 {[%clk
0:00:10.1]} 43... Ngxf4 {[%clk 0:00:31.7]} 44. Bxf4 {[%clk 0:00:08.3]} 44...
Nxf4 {[%clk 0:00:32]} 45. Qxf4 {[%clk 0:00:06.6]} 45... Rxf1+ {[%clk 0:00:30.2]}
46. Rxf1 {[%clk 0:00:06.1]} 46... Rxf4 {[%clk 0:00:30.4]} 47. Rxf3 {[%clk
0:00:06.3]} 47... Rxf3 {[%clk 0:00:31.3]} 0-1

[Event "Early-Titled-Tuesday-Blitz-October-17-2023"]
[Site "Chess.com"]
[Date "2023.10.17"]
[Round "5"]
[White "Szczor"]
[Black "kingofthenil"]
[Result "0-1"]
[WhiteElo "2531"]
[BlackElo "2718"]
[TimeControl "180+1"]
[EndTime "8:57:46 PDT"]
[Termination "kingofthenil won by resignation"]

1. d4 {[%clk 0:02:29.7]} 1... d6 {[%clk 0:01:09.4]} 2. e4 {[%clk 0:01:33.5]}
2... e6 {[%clk 0:00:49.9]} 3. Nc3 {[%clk 0:01:32.6]} 3... Nf6 {[%clk 0:00:47]}
4. f4 {[%clk 0:01:32.2]} 4... a6 {[%clk 0:00:36.7]} 5. a4 {[%clk 0:01:31]} 5...
d5 {[%clk 0:00:36.7]} 6. e5 {[%clk 0:01:30.7]} 6... Ne4 {[%clk 0:00:37.3]} 7.
Bd3 {[%clk 0:01:29.3]} 7... Qh4+ {[%clk 0:00:29.2]} 8. g3 {[%clk 0:01:19.9]}
8... Nxg3 {[%clk 0:00:29.2]} 9. Nf3 {[%clk 0:01:18.4]} 9... Qh3 {[%clk
0:00:23.5]} 10. Rg1 {[%clk 0:01:15.7]} 10... Nf5 {[%clk 0:00:23.8]} 11. Bxf5
{[%clk 0:01:13.4]} 11... Qxf5 {[%clk 0:00:24]} 12. Rg5 {[%clk 0:01:06.9]} 12...
Qh3 {[%clk 0:00:23.8]} 13. Rg3 {[%clk 0:00:55.5]} 13... Qf5 {[%clk 0:00:24.4]}
14. Rg5 {[%clk 0:00:55.2]} 14... Qh3 {[%clk 0:00:25.1]} 15. Rg3 {[%clk
0:00:55.4]} 15... Qh5 {[%clk 0:00:25.6]} 16. Rg5 {[%clk 0:00:54.7]} 16... Qh6
{[%clk 0:00:26.3]} 17. f5 {[%clk 0:00:47.9]} 17... Nc6 {[%clk 0:00:26.9]} 18.
Rg4 {[%clk 0:00:41.6]} 18... Qh3 {[%clk 0:00:26.3]} 19. Ng5 {[%clk 0:00:35.4]}
19... Qxh2 {[%clk 0:00:25.7]} 20. Qf3 {[%clk 0:00:31.1]} 20... exf5 {[%clk
0:00:23.5]} 21. Nxd5 {[%clk 0:00:24.4]} 21... Bb4+ {[%clk 0:00:24]} 22. c3
{[%clk 0:00:22.7]} 22... O-O {[%clk 0:00:23.5]} 23. Rg2 {[%clk 0:00:19.9]} 23...
Qh4+ {[%clk 0:00:17.3]} 24. Qg3 {[%clk 0:00:13.1]} 24... Qxg3+ {[%clk 0:00:17]}
25. Rxg3 {[%clk 0:00:14]} 25... Be7 {[%clk 0:00:17.3]} 26. Nxe7+ {[%clk
0:00:08.2]} 26... Nxe7 {[%clk 0:00:17.3]} 27. c4 {[%clk 0:00:07.9]} 27... Ng6
{[%clk 0:00:15]} 28. Rh3 {[%clk 0:00:07.8]} 28... f4 {[%clk 0:00:13.9]} 29. Rh5
{[%clk 0:00:05]} 29... Rd8 {[%clk 0:00:13.7]} 30. Rh2 {[%clk 0:00:03.9]} 30...
Rxd4 {[%clk 0:00:12.4]} 31. b3 {[%clk 0:00:04.6]} 31... Nxe5 {[%clk 0:00:11.8]}
32. Bb2 {[%clk 0:00:05.1]} 32... Nd3+ {[%clk 0:00:12.3]} 33. Kf1 {[%clk
0:00:04.4]} 33... Nxb2 {[%clk 0:00:13.2]} 34. Rxb2 {[%clk 0:00:04.4]} 34... Bf5
{[%clk 0:00:14.1]} 35. Re1 {[%clk 0:00:03.8]} 35... h6 {[%clk 0:00:14.4]} 36.
Nf3 {[%clk 0:00:03.8]} 36... Rd3 {[%clk 0:00:14]} 37. Ne5 {[%clk 0:00:04.4]}
37... Re3 {[%clk 0:00:12.4]} 38. Rf2 {[%clk 0:00:04.7]} 38... Rxe1+ {[%clk
0:00:11.6]} 39. Kxe1 {[%clk 0:00:05.2]} 39... Re8 {[%clk 0:00:12.3]} 0-1

[Event "Early-Titled-Tuesday-Blitz-October-17-2023"]
[Site "Chess.com"]
[Date "2023.10.17"]
[Round "5"]
[White "Akylbek2021"]
[Black "familijatop71"]
[Result "1-0"]
[WhiteElo "2275"]
[BlackElo "2113"]
[TimeControl "180+1"]
[EndTime "8:57:46 PDT"]
[Termination "Akylbek2021 won on time"]

1. e4 {[%clk 0:02:44.5]} 1... e6 {[%clk 0:02:59.8]} 2. d4 {[%clk 0:02:44.7]}
2... d5 {[%clk 0:02:59.5]} 3. e5 {[%clk 0:02:45.3]} 3... c5 {[%clk 0:02:58.9]}
4. c3 {[%clk 0:02:45.9]} 4... Nc6 {[%clk 0:02:57.6]} 5. Nf3 {[%clk 0:02:46.5]}
5... Qb6 {[%clk 0:02:56.7]} 6. Bd3 {[%clk 0:02:47.2]} 6... cxd4 {[%clk
0:02:54.9]} 7. O-O {[%clk 0:02:47.8]} 7... Bd7 {[%clk 0:02:52.7]} 8. Re1 {[%clk
0:02:47.1]} 8... dxc3 {[%clk 0:02:33.1]} 9. Nxc3 {[%clk 0:02:47]} 9... a6 {[%clk
0:02:33.8]} 10. a3 {[%clk 0:02:42.7]} 10... Rc8 {[%clk 0:02:33.1]} 11. h4 {[%clk
0:02:38]} 11... Nge7 {[%clk 0:02:20.5]} 12. Na4 {[%clk 0:02:31.5]} 12... Qd8
{[%clk 0:02:10.6]} 13. h5 {[%clk 0:02:27.2]} 13... g6 {[%clk 0:01:43.8]} 14. b4
{[%clk 0:01:39.5]} 14... Nf5 {[%clk 0:01:36.6]} 15. Bg5 {[%clk 0:01:12.2]} 15...
Be7 {[%clk 0:01:28.1]} 16. Qd2 {[%clk 0:01:12.8]} 16... Bxg5 {[%clk 0:01:27.4]}
17. Nxg5 {[%clk 0:01:12.6]} 17... Nfd4 {[%clk 0:01:17]} 18. Qf4 {[%clk
0:01:06.8]} 18... Qe7 {[%clk 0:01:11]} 19. h6 {[%clk 0:01:04.3]} 19... O-O
{[%clk 0:00:58.3]} 20. Nc5 {[%clk 0:00:58.4]} 20... Rc7 {[%clk 0:00:35.7]} 21.
Rac1 {[%clk 0:00:57.4]} 21... Nf5 {[%clk 0:00:18.9]} 22. Bxf5 {[%clk 0:00:48.3]}
22... exf5 {[%clk 0:00:15.5]} 23. a4 {[%clk 0:00:28.8]} 23... Be6 {[%clk
0:00:15.2]} 24. b5 {[%clk 0:00:28.6]} 24... axb5 {[%clk 0:00:15.1]} 25. axb5
{[%clk 0:00:29.5]} 25... Nd8 {[%clk 0:00:11]} 26. Nb3 {[%clk 0:00:20.4]} 26...
Rxc1 {[%clk 0:00:10.6]} 27. Rxc1 {[%clk 0:00:21.3]} 27... f6 {[%clk 0:00:09.6]}
28. Nf3 {[%clk 0:00:19.8]} 28... fxe5 {[%clk 0:00:09.1]} 29. Qxe5 {[%clk
0:00:20.7]} 29... Rf7 {[%clk 0:00:04.4]} 30. Nbd4 {[%clk 0:00:20.3]} 30... Bd7
{[%clk 0:00:03.2]} 31. Qb8 {[%clk 0:00:18]} 31... Rf8 {[%clk 0:00:01.5]} 32. Qf4
{[%clk 0:00:12.5]} 32... Ne6 {[%clk 0:00:01.6]} 33. Qe5 {[%clk 0:00:11.5]} 33...
Rf7 {[%clk 0:00:01.3]} 34. b6 {[%clk 0:00:10.6]} 34... Nxd4 {[%clk 0:00:01.6]}
35. Qxd4 {[%clk 0:00:11.5]} 35... Qe4 {[%clk 0:00:01.1]} 36. Qc5 {[%clk
0:00:08.8]} 1-0

[Event "Early-Titled-Tuesday-Blitz-October-17-2023"]
[Site "Chess.com"]
[Date "2023.10.17"]
[Round "5"]
[White "InitiatingASC"]
[Black "Tagliata"]
[Result "1/2-1/2"]
[WhiteElo "2354"]
[BlackElo "2128"]
[TimeControl "180+1"]
[EndTime "8:57:48 PDT"]
[Termination "Game drawn - insufficient material"]

1. e4 {[%clk 0:02:49.8]} 1... c5 {[%clk 0:02:59.9]} 2. Nf3 {[%clk 0:02:49.6]}
2... Nc6 {[%clk 0:03:00.4]} 3. Bb5 {[%clk 0:02:49.5]} 3... e6 {[%clk 0:02:59.9]}
4. O-O {[%clk 0:02:49]} 4... Nge7 {[%clk 0:02:59.4]} 5. Re1 {[%clk 0:02:49.2]}
5... Nd4 {[%clk 0:02:57.7]} 6. Nxd4 {[%clk 0:02:45.7]} 6... cxd4 {[%clk
0:02:58.6]} 7. c3 {[%clk 0:02:46]} 7... a6 {[%clk 0:02:56.4]} 8. Bf1 {[%clk
0:02:45.7]} 8... Nc6 {[%clk 0:02:56.5]} 9. Na3 {[%clk 0:02:42.6]} 9... Be7
{[%clk 0:02:55.5]} 10. Nc2 {[%clk 0:02:42.8]} 10... dxc3 {[%clk 0:02:51]} 11.
bxc3 {[%clk 0:02:42.3]} 11... O-O {[%clk 0:02:49.4]} 12. d4 {[%clk 0:02:42]}
12... d6 {[%clk 0:02:46.7]} 13. Rb1 {[%clk 0:02:36.6]} 13... Bf6 {[%clk
0:02:44.3]} 14. Ba3 {[%clk 0:02:21.9]} 14... Re8 {[%clk 0:02:39.1]} 15. Nb4
{[%clk 0:02:18.4]} 15... Nxb4 {[%clk 0:02:37.8]} 16. Bxb4 {[%clk 0:02:17]} 16...
Qc7 {[%clk 0:02:37.6]} 17. Qa4 {[%clk 0:02:15.7]} 17... Bd7 {[%clk 0:02:36.4]}
18. Qa5 {[%clk 0:02:13.9]} 18... Qxa5 {[%clk 0:02:34.1]} 19. Bxa5 {[%clk
0:02:13.3]} 19... Bc6 {[%clk 0:02:34.7]} 20. Bc7 {[%clk 0:02:07.3]} 20... d5
{[%clk 0:02:26.3]} 21. e5 {[%clk 0:02:02.6]} 21... Be7 {[%clk 0:02:26.8]} 22.
Bd3 {[%clk 0:01:57.6]} 22... Rec8 {[%clk 0:02:26.6]} 23. Ba5 {[%clk 0:01:57.1]}
23... b5 {[%clk 0:02:18.3]} 24. Kf1 {[%clk 0:01:49.5]} 24... Bd7 {[%clk
0:02:18.1]} 25. Ke2 {[%clk 0:01:47.8]} 25... Bd8 {[%clk 0:02:18.1]} 26. Bxd8
{[%clk 0:01:40.3]} 26... Rxd8 {[%clk 0:02:19]} 27. Rb3 {[%clk 0:01:38.9]} 27...
Rdc8 {[%clk 0:02:17.8]} 28. Kd2 {[%clk 0:01:38.9]} 28... Rc6 {[%clk 0:02:17.6]}
29. Ra3 {[%clk 0:01:37.6]} 29... Rac8 {[%clk 0:02:17.3]} 30. f4 {[%clk
0:01:37.4]} 30... g6 {[%clk 0:02:16.5]} 31. g4 {[%clk 0:01:36.9]} 31... Kf8
{[%clk 0:02:14.3]} 32. h4 {[%clk 0:01:36]} 32... Ke7 {[%clk 0:02:13.3]} 33. Rh1
{[%clk 0:01:34.1]} 33... Rb8 {[%clk 0:02:00.9]} 34. Rb3 {[%clk 0:01:25.4]} 34...
Rcb6 {[%clk 0:01:56.5]} 35. h5 {[%clk 0:01:21.6]} 35... b4 {[%clk 0:01:55.3]}
36. cxb4 {[%clk 0:00:50.8]} 36... Rxb4 {[%clk 0:01:56.2]} 37. Rxb4 {[%clk
0:00:51.2]} 37... Rxb4 {[%clk 0:01:57.1]} 38. Kc3 {[%clk 0:00:51.6]} 38... Ra4
{[%clk 0:01:57.6]} 39. hxg6 {[%clk 0:00:46.3]} 39... hxg6 {[%clk 0:01:58.5]} 40.
Rh7 {[%clk 0:00:41.8]} 40... Kf8 {[%clk 0:01:31.7]} 41. Bxg6 {[%clk 0:00:40.7]}
41... fxg6 {[%clk 0:01:21.3]} 42. Rxd7 {[%clk 0:00:40.3]} 42... Rxa2 {[%clk
0:01:21.8]} 43. Rd6 {[%clk 0:00:20.4]} 43... Ke7 {[%clk 0:01:20.2]} 44. f5
{[%clk 0:00:19.8]} 44... gxf5 {[%clk 0:01:19.2]} 45. gxf5 {[%clk 0:00:19.4]}
45... exf5 {[%clk 0:01:18.4]} 46. Rxd5 {[%clk 0:00:19.8]} 46... f4 {[%clk
0:01:14.3]} 47. Rd6 {[%clk 0:00:17.7]} 47... f3 {[%clk 0:01:13.4]} 48. Rf6
{[%clk 0:00:17.9]} 48... f2 {[%clk 0:01:12.1]} 49. d5 {[%clk 0:00:18.4]} 49...
Re2 {[%clk 0:01:11.3]} 50. Kd4 {[%clk 0:00:17.3]} 50... a5 {[%clk 0:01:08.4]}
51. d6+ {[%clk 0:00:16.8]} 51... Kd7 {[%clk 0:01:08.1]} 52. Kd5 {[%clk
0:00:16.4]} 52... Rd2+ {[%clk 0:01:07.7]} 53. Ke4 {[%clk 0:00:15.9]} 53... a4
{[%clk 0:01:07.5]} 54. Rf7+ {[%clk 0:00:16.2]} 54... Ke8 {[%clk 0:01:06.7]} 55.
e6 {[%clk 0:00:07.7]} 55... Rxd6 {[%clk 0:01:00.2]} 56. Rxf2 {[%clk 0:00:07.2]}
56... Rxe6+ {[%clk 0:00:54.9]} 57. Kd5 {[%clk 0:00:07.5]} 57... Rb6 {[%clk
0:00:52.3]} 58. Ra2 {[%clk 0:00:07.4]} 58... Rb4 {[%clk 0:00:50.4]} 59. Kc5
{[%clk 0:00:07.6]} 59... Re4 {[%clk 0:00:49.4]} 60. Kb5 {[%clk 0:00:07.8]} 60...
Kd7 {[%clk 0:00:48.8]} 61. Rxa4 {[%clk 0:00:07.6]} 61... Rxa4 {[%clk 0:00:49.6]}
62. Kxa4 {[%clk 0:00:08.1]} 1/2-1/2

[Event "Early-Titled-Tuesday-Blitz-October-17-2023"]
[Site "Chess.com"]
[Date "2023.10.17"]
[Round "5"]
[White "GMSAGOR"]
[Black "borocotoajua"]
[Result "1-0"]
[WhiteElo "2478"]
[BlackElo "2590"]
[TimeControl "180+1"]
[EndTime "8:57:51 PDT"]
[Termination "GMSAGOR won on time"]

1. e4 {[%clk 0:03:00.9]} 1... c6 {[%clk 0:02:58.3]} 2. d4 {[%clk 0:03:00.1]}
2... d5 {[%clk 0:02:58.4]} 3. Nc3 {[%clk 0:02:58.8]} 3... dxe4 {[%clk
0:02:57.8]} 4. Nxe4 {[%clk 0:02:59.7]} 4... Nd7 {[%clk 0:02:57.4]} 5. Nf3 {[%clk
0:02:59]} 5... Ngf6 {[%clk 0:02:57.2]} 6. Nxf6+ {[%clk 0:02:56.3]} 6... Nxf6
{[%clk 0:02:58.1]} 7. Bc4 {[%clk 0:02:56.6]} 7... Bf5 {[%clk 0:02:52.2]} 8. Bb3
{[%clk 0:02:56.2]} 8... e6 {[%clk 0:02:50.7]} 9. Qe2 {[%clk 0:02:55.5]} 9... Bd6
{[%clk 0:02:48.8]} 10. h3 {[%clk 0:02:52.7]} 10... Qc7 {[%clk 0:02:47.5]} 11.
Ne5 {[%clk 0:02:51.7]} 11... O-O {[%clk 0:02:39.5]} 12. Bf4 {[%clk 0:02:48.6]}
12... c5 {[%clk 0:02:33.3]} 13. dxc5 {[%clk 0:02:48.3]} 13... Qxc5 {[%clk
0:02:28.1]} 14. O-O {[%clk 0:02:46.2]} 14... Rfd8 {[%clk 0:02:09.9]} 15. Rad1
{[%clk 0:02:43.7]} 15... Ne4 {[%clk 0:01:57.9]} 16. Nd3 {[%clk 0:02:19.4]} 16...
Qc7 {[%clk 0:01:57.8]} 17. Qe3 {[%clk 0:02:03.7]} 17... a5 {[%clk 0:01:34.4]}
18. a4 {[%clk 0:01:45.3]} 18... Rac8 {[%clk 0:01:31.9]} 19. c3 {[%clk
0:01:42.9]} 19... Bxf4 {[%clk 0:01:23]} 20. Nxf4 {[%clk 0:01:29.3]} 20... Nc5
{[%clk 0:01:19.8]} 21. Ba2 {[%clk 0:01:15.2]} 21... Nxa4 {[%clk 0:01:19.4]} 22.
g4 {[%clk 0:01:10.6]} 22... Bg6 {[%clk 0:01:11.6]} 23. Nxe6 {[%clk 0:00:47.8]}
23... fxe6 {[%clk 0:01:05.6]} 24. Bxe6+ {[%clk 0:00:46.9]} 24... Bf7 {[%clk
0:01:00.1]} 25. Bxc8 {[%clk 0:00:47.8]} 25... Rxc8 {[%clk 0:01:00.9]} 26. Rd2
{[%clk 0:00:40.7]} 26... Nb6 {[%clk 0:01:01.4]} 27. Qg5 {[%clk 0:00:18.7]} 27...
Nc4 {[%clk 0:00:55.9]} 28. Re2 {[%clk 0:00:19.2]} 28... h6 {[%clk 0:00:54.3]}
29. Qc1 {[%clk 0:00:15.9]} 29... a4 {[%clk 0:00:51.9]} 30. Rfe1 {[%clk
0:00:16.2]} 30... Qb6 {[%clk 0:00:45.5]} 31. Re7 {[%clk 0:00:15.2]} 31... Qxb2
{[%clk 0:00:38.6]} 32. Qf4 {[%clk 0:00:15.8]} 32... Bg6 {[%clk 0:00:27.5]} 33.
Rxg7+ {[%clk 0:00:10.5]} 33... Kxg7 {[%clk 0:00:21.5]} 34. Re7+ {[%clk
0:00:10.6]} 34... Kg8 {[%clk 0:00:20.6]} 35. Qf6 {[%clk 0:00:06]} 1-0

[Event "Early-Titled-Tuesday-Blitz-October-17-2023"]
[Site "Chess.com"]
[Date "2023.10.17"]
[Round "5"]
[White "bascheyaro"]
[Black "Firouzja2003"]
[Result "0-1"]
[WhiteElo "2842"]
[BlackElo "3083"]
[TimeControl "180+1"]
[EndTime "8:57:53 PDT"]
[Termination "Firouzja2003 won by checkmate"]

1. d4 {[%clk 0:03:00.9]} 1... Nf6 {[%clk 0:02:59.9]} 2. c4 {[%clk 0:03:01]} 2...
g6 {[%clk 0:02:59.8]} 3. Nf3 {[%clk 0:03:01]} 3... Bg7 {[%clk 0:03:00.3]} 4. Nc3
{[%clk 0:03:00.9]} 4... O-O {[%clk 0:03:00.7]} 5. Bf4 {[%clk 0:03:00.7]} 5... d6
{[%clk 0:03:00.9]} 6. e3 {[%clk 0:03:00.9]} 6... c5 {[%clk 0:02:58.4]} 7. Be2
{[%clk 0:03:00.6]} 7... Nc6 {[%clk 0:02:58.1]} 8. O-O {[%clk 0:03:00.2]} 8...
Nh5 {[%clk 0:02:45.7]} 9. Bg5 {[%clk 0:02:57.6]} 9... h6 {[%clk 0:02:45.7]} 10.
Bh4 {[%clk 0:02:57.9]} 10... cxd4 {[%clk 0:02:44.3]} 11. Nxd4 {[%clk 0:02:57.6]}
11... Nf4 {[%clk 0:02:37.6]} 12. Bf3 {[%clk 0:02:25.3]} 12... Nxd4 {[%clk
0:02:31.5]} 13. exd4 {[%clk 0:02:25.2]} 13... g5 {[%clk 0:02:32.2]} 14. Bg3
{[%clk 0:02:25.2]} 14... Ne6 {[%clk 0:02:33]} 15. d5 {[%clk 0:02:22.3]} 15...
Nd4 {[%clk 0:02:32]} 16. Bh5 {[%clk 0:02:18]} 16... e5 {[%clk 0:02:22.7]} 17.
dxe6 {[%clk 0:02:14.5]} 17... Bxe6 {[%clk 0:02:22.7]} 18. Nd5 {[%clk 0:02:09.8]}
18... Rc8 {[%clk 0:02:10.3]} 19. Rc1 {[%clk 0:02:04.6]} 19... Bxd5 {[%clk
0:02:09.5]} 20. cxd5 {[%clk 0:02:04.2]} 20... Qa5 {[%clk 0:01:57.4]} 21. Bxd6
{[%clk 0:01:59.1]} 21... Rfe8 {[%clk 0:01:47.9]} 22. Rxc8 {[%clk 0:01:50]} 22...
Rxc8 {[%clk 0:01:47.7]} 23. f4 {[%clk 0:00:46.2]} 23... Qxd5 {[%clk 0:01:46.1]}
24. Be5 {[%clk 0:00:45.5]} 24... Bxe5 {[%clk 0:01:46.1]} 25. fxe5 {[%clk
0:00:45.8]} 25... Qxe5 {[%clk 0:01:47]} 26. Bxf7+ {[%clk 0:00:43.9]} 26... Kg7
{[%clk 0:01:32.9]} 27. Qd3 {[%clk 0:00:43.6]} 27... Ne2+ {[%clk 0:01:18.1]} 28.
Kh1 {[%clk 0:00:43.3]} 28... Nf4 {[%clk 0:01:18.7]} 29. Qf3 {[%clk 0:00:23.7]}
29... Qe2 {[%clk 0:00:40]} 30. Qxe2 {[%clk 0:00:14.9]} 30... Nxe2 {[%clk
0:00:40.9]} 31. Bd5 {[%clk 0:00:13.9]} 31... Nf4 {[%clk 0:00:33.2]} 32. Bxb7
{[%clk 0:00:13.7]} 32... Rc2 {[%clk 0:00:33.9]} 33. g3 {[%clk 0:00:12.6]} 33...
Nd3 {[%clk 0:00:31.4]} 34. Bd5 {[%clk 0:00:12.7]} 34... Nf2+ {[%clk 0:00:21.7]}
35. Kg1 {[%clk 0:00:13]} 35... Nh3+ {[%clk 0:00:22]} 36. Kh1 {[%clk 0:00:13.6]}
36... Rxb2 {[%clk 0:00:21.6]} 37. Rf7+ {[%clk 0:00:13.3]} 37... Kg6 {[%clk
0:00:21.7]} 38. Rxa7 {[%clk 0:00:11.5]} 38... g4 {[%clk 0:00:20.2]} 39. Be4+
{[%clk 0:00:11.9]} 39... Kf6 {[%clk 0:00:20.1]} 40. Ra5 {[%clk 0:00:04.1]} 40...
Nf2+ {[%clk 0:00:19.5]} 41. Kg1 {[%clk 0:00:03.6]} 41... Nxe4 {[%clk 0:00:20.4]}
42. Ra4 {[%clk 0:00:04.1]} 42... Ng5 {[%clk 0:00:18.4]} 43. Rf4+ {[%clk
0:00:04.6]} 43... Ke6 {[%clk 0:00:18.8]} 44. Rxg4 {[%clk 0:00:05.1]} 44... Nf3+
{[%clk 0:00:19.3]} 45. Kh1 {[%clk 0:00:05.7]} 45... Rxh2# {[%clk 0:00:19.2]} 0-1

[Event "Early-Titled-Tuesday-Blitz-October-17-2023"]
[Site "Chess.com"]
[Date "2023.10.17"]
[Round "5"]
[White "whiteglovethief"]
[Black "rasmussvane"]
[Result "0-1"]
[WhiteElo "2672"]
[BlackElo "2989"]
[TimeControl "180+1"]
[EndTime "8:57:54 PDT"]
[Termination "rasmussvane won on time"]

1. d4 {[%clk 0:02:51.6]} 1... d5 {[%clk 0:02:59]} 2. c4 {[%clk 0:02:49.1]} 2...
e6 {[%clk 0:02:59.2]} 3. Nf3 {[%clk 0:02:49.2]} 3... a6 {[%clk 0:02:59.5]} 4. e3
{[%clk 0:02:46.4]} 4... Nf6 {[%clk 0:02:58.2]} 5. b3 {[%clk 0:02:46.1]} 5... Bd6
{[%clk 0:02:49.7]} 6. Bd3 {[%clk 0:02:44.2]} 6... b6 {[%clk 0:02:48.1]} 7. O-O
{[%clk 0:02:43.9]} 7... O-O {[%clk 0:02:48]} 8. Bb2 {[%clk 0:02:43.2]} 8... Bb7
{[%clk 0:02:47.9]} 9. Nbd2 {[%clk 0:02:40.7]} 9... Nbd7 {[%clk 0:02:45.4]} 10.
Qe2 {[%clk 0:02:40.9]} 10... Qe7 {[%clk 0:02:40.3]} 11. e4 {[%clk 0:02:39.7]}
11... dxe4 {[%clk 0:02:33.6]} 12. Nxe4 {[%clk 0:02:40.6]} 12... Ba3 {[%clk
0:02:26.1]} 13. Nxf6+ {[%clk 0:02:26.5]} 13... Nxf6 {[%clk 0:02:26.2]} 14. Ne5
{[%clk 0:02:14.5]} 14... Bxb2 {[%clk 0:02:23.4]} 15. Qxb2 {[%clk 0:02:15.4]}
15... Rfd8 {[%clk 0:02:19.3]} 16. Rfe1 {[%clk 0:02:14.4]} 16... c5 {[%clk
0:02:04]} 17. d5 {[%clk 0:02:10.4]} 17... Rd6 {[%clk 0:01:45.4]} 18. dxe6 {[%clk
0:01:46.3]} 18... Qxe6 {[%clk 0:01:26.9]} 19. Bf1 {[%clk 0:01:04.3]} 19... Qf5
{[%clk 0:01:20.1]} 20. Rad1 {[%clk 0:00:46]} 20... Rxd1 {[%clk 0:01:12.5]} 21.
Rxd1 {[%clk 0:00:46.9]} 21... Re8 {[%clk 0:01:12.9]} 22. Nd3 {[%clk 0:00:36]}
22... h5 {[%clk 0:01:08.7]} 23. Re1 {[%clk 0:00:32.7]} 23... Rxe1 {[%clk
0:00:57.3]} 24. Nxe1 {[%clk 0:00:33.6]} 24... h4 {[%clk 0:00:57.7]} 25. h3
{[%clk 0:00:32.6]} 25... Nh5 {[%clk 0:00:47.5]} 26. Bd3 {[%clk 0:00:30.2]} 26...
Qe6 {[%clk 0:00:43.7]} 27. Qe2 {[%clk 0:00:29]} 27... Nf4 {[%clk 0:00:33.7]} 28.
Qxe6 {[%clk 0:00:23.7]} 28... Nxe6 {[%clk 0:00:34.6]} 29. Nc2 {[%clk 0:00:18.2]}
29... Kf8 {[%clk 0:00:23.3]} 30. f3 {[%clk 0:00:14.9]} 30... Ke7 {[%clk
0:00:22]} 31. Kf2 {[%clk 0:00:14.2]} 31... Kd6 {[%clk 0:00:20.9]} 32. Ke3 {[%clk
0:00:13.1]} 32... Ke5 {[%clk 0:00:20.8]} 33. Bf1 {[%clk 0:00:09.6]} 33... g5
{[%clk 0:00:21.1]} 34. Ne1 {[%clk 0:00:09]} 34... f6 {[%clk 0:00:13.5]} 35. Nd3+
{[%clk 0:00:09.9]} 35... Kd6 {[%clk 0:00:14]} 36. Nf2 {[%clk 0:00:09.9]} 36...
Bc6 {[%clk 0:00:13.5]} 37. Bd3 {[%clk 0:00:10.2]} 37... Be8 {[%clk 0:00:12.4]}
38. Be4 {[%clk 0:00:10.2]} 38... Nf4 {[%clk 0:00:12.7]} 39. Bb7 {[%clk
0:00:02.9]} 39... Nxg2+ {[%clk 0:00:12]} 40. Kd2 {[%clk 0:00:03.1]} 40... a5
{[%clk 0:00:11.5]} 41. Ne4+ {[%clk 0:00:03.7]} 41... Ke5 {[%clk 0:00:11.3]} 42.
Ke2 {[%clk 0:00:01.8]} 42... Nf4+ {[%clk 0:00:11.5]} 0-1